bitfinex/quotes_SOLUSD_20250129
["timestamp","ask_amount","ask_price","bid_price","bid_amount"]
[1738171391654,20.0,228.72,228.67,1.629]
[1738171391849,1.52972523,228.73,228.67,1.629]
[1738171395763,0.8744,228.73,228.68,0.65590092]
[1738171396155,0.03,228.74,228.69,23.776884]
[1738171396361,0.03,228.74,228.7,0.6557962]
[1738171396554,0.03,228.74,228.69,24.43268453]
[1738171398065,0.03,228.74,228.69,0.65580053]
[1738171398365,8.07936654,228.72,228.67,1.629]
[1738171398856,8.73469177,228.71,228.67,1.629]
[1738171400358,9.60919177,228.71,228.67,1.629]
[1738171400559,0.8745,228.71,228.67,1.629]
[1738171400756,20.0,228.73,228.68,0.65590068]
[1738171400957,0.03,228.74,228.69,23.776884]
[1738171401161,0.03,228.74,228.71,23.776884]
[1738171401340,0.03,228.74,228.73,30.350684]
[1738171401546,0.03,228.74,228.73,30.727154]
[1738171402069,0.03,228.74,228.73,30.852644]
[1738171402374,0.03,228.74,228.73,35.224544]
[1738171403557,0.03,228.74,228.73,36.776344]
[1738171404979,0.03,228.74,228.73,189.376344]
[1738171405263,0.03,228.85,228.73,189.376344]
[1738171405264,0.03,228.85,228.77,0.12549]
[1738171405466,0.03,228.85,228.79,23.902374]
[1738171405675,0.03,228.85,228.77,0.65546753]
[1738171405676,1.55922523,228.85,228.77,0.65546753]
[1738171405856,14.1708842,228.85,228.77,0.65546753]
[1738171406157,14.1708842,228.85,228.78,23.776884]
[1738171407250,12.61165897,228.84,228.78,23.776884]
[1738171407560,0.874,228.83,228.78,23.776884]
[1738171408771,0.874,228.83,228.79,0.65554412]
[1738171408967,0.874,228.83,228.78,23.776884]
[1738171409175,0.874,228.83,228.8,23.776884]
[1738171409371,12.64165897,228.85,228.8,23.776884]
[1738171409372,0.9039,228.85,228.8,23.776884]
[1738171409567,0.03,228.85,228.82,23.776884]
[1738171409765,0.03,228.85,228.84,23.776884]
[1738171410955,0.03,228.85,228.84,23.902374]
[1738171413476,0.03,228.85,228.83,6.5596]
[1738171413666,0.03,228.85,228.82,1.6544]
[1738171414050,0.03,228.85,228.82,25.431284]
[1738171414255,0.03,228.85,228.83,0.65544783]
[1738171414473,0.03,228.85,228.84,23.776884]
[1738171414987,0.03,228.85,228.83,0.65544783]
[1738171415169,0.03,228.85,228.79,0.6553571]
[1738171415472,0.9039,228.85,228.79,0.6553571]
[1738171415774,14.1708842,228.85,228.79,0.6553571]
[1738171415981,12.61165897,228.84,228.78,6.94882815]
[1738171416162,13.2669842,228.83,228.78,6.2933]
[1738171416370,12.61165897,228.82,228.76,2.30855874]
[1738171416680,12.61165897,228.79,228.73,6.95701824]
[1738171417297,0.8742,228.78,228.73,6.95701824]
[1738171417468,14.1411842,228.78,228.7,2.16689223]
[1738171417659,12.61165897,228.77,228.7,2.16689223]
[1738171417990,12.61165897,228.77,228.71,23.776884]
[1738171418375,13.48585897,228.78,228.71,24.43264368]
[1738171419060,0.8742,228.78,228.72,0.25098]
[1738171419283,0.8741,228.8,228.74,23.776884]
[1738171419587,0.8741,228.8,228.75,0.65562308]
[1738171419962,13.48575897,228.8,228.75,0.65562308]
[1738171420580,13.48575897,228.8,228.72,0.65565553]
[1738171420786,0.65532523,228.79,228.72,0.65565553]
[1738171421796,0.8742,228.78,228.73,23.776884]
[1738171422098,0.8742,228.78,228.74,0.65566442]
[1738171423204,1.52942523,228.79,228.71,0.65565552]
[1738171423403,12.61165897,228.78,228.71,0.65565552]
[1738171423597,12.61165897,228.78,228.72,23.776884]
[1738171423986,12.61165897,228.78,228.73,0.65570685]
[1738171424608,8.07446045,228.78,228.73,0.65570685]
[1738171425505,8.07446045,228.8,228.74,23.776884]
[1738171425719,20.0,228.78,228.74,23.776884]
[1738171426812,0.8742,228.77,228.74,23.776884]
[1738171427908,8.07446045,228.79,228.74,23.776884]
[1738171428128,0.8742,228.78,228.74,23.776884]
[1738171429603,0.8742,228.78,228.75,0.65565247]
[1738171430109,8.07446045,228.83,228.76,23.776884]
[1738171430307,0.65532523,228.84,228.78,23.776884]
[1738171430308,0.874,228.82,228.78,23.776884]
[1738171430511,0.65532523,228.84,228.78,23.776884]
[1738171430512,0.874,228.84,228.8,23.776884]
[1738171430837,20.03,228.85,228.81,0.65545193]
[1738171431013,20.9039,228.85,228.81,0.65545193]
[1738171433349,0.9039,228.85,228.81,0.65545193]
[1738171434216,0.03,228.85,228.8,0.65546575]
[1738171435331,0.9039,228.85,228.81,0.6554869]
[1738171435523,0.9039,228.85,228.79,0.65546977]
[1738171435730,9.63368568,228.85,228.79,0.65546977]
[1738171435918,8.97836045,228.85,228.79,0.65546977]
[1738171436226,8.07446045,228.84,228.79,0.65546977]
[1738171436437,0.9039,228.85,228.79,0.65546977]
[1738171436438,8.97836045,228.85,228.79,0.65546977]
[1738171436625,0.9039,228.85,228.8,0.25098]
[1738171436806,0.03,228.85,228.82,23.776884]
[1738171437005,0.03,228.85,228.84,23.776884]
[1738171437824,0.03,228.85,228.8,0.65541167]
[1738171439023,0.03,228.85,228.81,23.776884]
[1738171439215,0.03,228.85,228.82,0.65544893]
[1738171441526,0.03,228.85,228.81,0.65545565]
[1738171443632,0.03,228.85,228.82,0.25098]
[1738171443823,0.03,228.85,228.83,0.65537766]
[1738171444731,0.03,228.85,228.82,0.65540649]
[1738171445454,8.07446045,228.83,228.78,0.65544717]
[1738171445643,8.07446045,228.8,228.74,1.7192]
[1738171445958,0.03,228.85,228.74,0.063]
[1738171445959,8.07446045,228.78,228.74,0.063]
[1738171446520,8.07446045,228.79,228.74,0.063]
[1738171447050,0.874,228.82,228.76,0.25098]
[1738171447347,0.874,228.82,228.77,0.65556094]
[1738171447348,8.94846045,228.82,228.77,0.65556094]
[1738171448153,0.874,228.82,228.77,0.65556094]
[1738171448727,8.94846045,228.84,228.78,23.776884]
[1738171448945,8.94846045,228.84,228.79,0.6555022]
[1738171449140,0.874,228.84,228.79,0.6555022]
[1738171449851,8.94846045,228.84,228.79,0.6555022]
[1738171450057,8.07446045,228.83,228.78,0.65551837]
[1738171450949,8.07446045,228.83,228.79,23.776884]
[1738171451148,8.97836045,228.85,228.8,0.65548276]
[1738171451355,0.03,228.85,228.81,23.902374]
[1738171451657,0.03,228.85,228.82,0.65538153]
[1738171452463,0.03,228.85,228.84,0.25098]
[1738171452773,0.03,228.87,228.86,2.50196]
[1738171452937,0.03,228.87,228.86,26.93390724]
[1738171453353,0.03,228.87,228.86,24.93390724]
[1738171453749,0.03,228.87,228.86,0.65506324]
[1738171453962,0.03,228.87,228.84,0.65537346]
[1738171454337,0.03,228.87,228.84,24.43225746]
[1738171454551,12.63642096,228.87,228.83,6.596]
[1738171454734,12.63642096,228.87,228.82,0.65541044]
[1738171456067,0.8738,228.86,228.82,0.65541044]
[1738171456641,12.60642096,228.85,228.8,24.43231229]
[1738171458195,12.60642096,228.85,228.8,0.65542829]
[1738171458474,12.60642096,228.83,228.8,0.65553522]
[1738171458656,0.8739,228.84,228.8,0.65553522]
[1738171458974,13.48032096,228.84,228.8,0.65553522]
[1738171459470,0.8739,228.84,228.8,0.65553522]
[1738171460273,12.60642096,228.85,228.8,0.65553522]
[1738171460575,0.68532523,228.87,228.8,0.65553522]
[1738171460576,0.9038,228.87,228.81,0.25098]
[1738171460759,0.9038,228.87,228.82,0.65537654]
[1738171460955,0.03,228.87,228.83,23.776884]
[1738171461146,0.03,228.87,228.84,0.6553432]
[1738171461345,0.03,228.85,228.84,0.6553432]
[1738171461652,0.03,228.85,228.84,24.6832072]
[1738171461868,0.03,228.85,228.84,24.9341872]
[1738171462975,0.03,228.85,228.84,24.4322272]
[1738171463173,0.03,228.85,228.84,24.6832072]
[1738171463344,0.03,228.85,228.84,24.8086972]
[1738171465377,0.03,228.85,228.84,0.6553432]
[1738171465545,0.03,228.85,228.81,30.65539463]
[1738171465747,0.03,228.85,228.82,24.027864]
[1738171465947,0.03,228.85,228.83,0.655354]
[1738171467975,12.60642096,228.84,228.8,121.6]
[1738171469968,0.874,228.83,228.8,121.6]
[1738171470479,0.874,228.83,228.77,6.28868]
[1738171470775,0.874,228.83,228.78,0.65555279]
[1738171471574,0.03,228.85,228.8,0.25098]
[1738171471751,0.03,228.85,228.83,0.25098]
[1738171471955,0.03,228.85,228.84,24.43222236]
[1738171472174,0.03,228.85,228.84,24.80869236]
[1738171474285,0.03,228.85,228.84,24.93418236]
[1738171475884,0.03,228.85,228.84,29.30398236]
[1738171476297,0.03,228.85,228.84,24.93418236]
[1738171477487,0.03,228.85,228.84,24.80869236]
[1738171477866,0.03,228.85,228.84,24.43222236]
[1738171478067,0.03,228.85,228.83,0.65534426]
[1738171479193,0.03,228.85,228.8,0.71844228]
[1738171479597,0.03,228.85,228.81,23.776884]
[1738171479796,0.9039,228.85,228.82,0.65544613]
[1738171480169,0.9039,228.85,228.8,0.71844695]
[1738171481578,0.9039,228.85,228.81,23.776884]
[1738171481779,0.03,228.85,228.82,0.65541367]
[1738171482780,0.03,228.85,228.83,24.027864]
[1738171482982,0.03,228.85,228.84,24.80866138]
[1738171483198,0.03,228.85,228.84,24.43219138]
[1738171483387,0.03,228.85,228.82,23.902374]
[1738171483596,0.03,228.85,228.83,0.655391]
[1738171483788,0.03,228.85,228.84,23.776884]
[1738171484499,0.03,228.85,228.84,0.65532053]
[1738171484679,0.03,228.85,228.84,1.03179053]
[1738171484887,0.03,228.85,228.84,0.90630053]
[1738171485083,0.03,228.85,228.84,24.99716453]
[1738171485286,0.03,228.85,228.84,29.36696453]
[1738171485684,0.03,228.85,228.84,24.99716453]
[1738171486701,0.03,228.85,228.84,29.36696453]
[1738171487102,0.03,228.85,228.84,24.87167453]
[1738171487274,0.03,228.85,228.84,24.99716453]
[1738171488189,0.03,228.85,228.84,35.77456453]
[1738171488391,0.03,228.85,228.84,36.77456453]
[1738171489102,0.03,228.85,228.84,31.40476453]
[1738171489599,0.03,228.85,228.84,24.99716453]
[1738171491200,0.03,228.85,228.84,24.87167453]
[1738171491503,12.63642096,228.85,228.84,0.063]
[1738171492706,8.97409396,228.85,228.84,0.063]
[1738171492890,0.9039,228.85,228.84,0.063]
[1738171494696,0.03,228.85,228.84,0.063]
[1738171495678,0.03,228.85,228.84,24.49522046]
[1738171496184,0.03,228.85,228.84,0.063]
[1738171496679,0.03,228.85,228.84,0.718362]
[1738171497505,0.03,228.85,228.84,24.495246]
[1738171498701,0.03,228.85,228.84,0.063]
[1738171498906,12.63835445,228.85,228.84,0.063]
[1738171499419,0.03,228.85,228.84,0.063]
[1738171502508,0.03,228.85,228.84,24.49524221]
[1738171502888,0.03,228.85,228.84,0.063]
[1738171508503,0.03,228.85,228.84,0.31398]
[1738171508818,0.03,228.85,228.84,28.711644]
[1738171508989,0.03,228.85,228.84,29.711644]
[1738171509185,0.03,228.85,228.84,30.36677221]
[1738171509610,0.03,228.85,228.84,151.96677221]
[1738171509816,0.03,228.85,228.84,151.311644]
[1738171510313,0.03,228.85,228.84,164.83710229]
[1738171511509,0.03,228.85,228.84,151.311644]
[1738171511713,0.03,228.9,228.89,56.870744]
[1738171511900,0.03,228.9,228.89,182.10571273]
[1738171512218,0.03,228.9,228.89,187.737144]
[1738171512393,0.03,228.94,228.93,55.278844]
[1738171512597,0.03,228.94,228.93,55.93371014]
[1738171513299,0.03,228.94,228.93,177.53371014]
[1738171513504,0.03,229.03,228.96,59.646344]
[1738171513703,0.03,229.03,228.96,180.90116811]
[1738171513902,0.03,229.03,228.96,180.246344]
[1738171514092,0.03,229.03,228.96,181.246344]
[1738171515106,0.03,229.03,229.01,0.50196]
[1738171515306,0.03,229.03,229.02,24.93356427]
[1738171515623,0.03,229.03,229.02,32.27996427]
[1738171516411,0.03,229.03,229.02,27.91356427]
[1738171518024,0.03,229.03,229.02,154.87996427]
[1738171518200,0.03,229.03,229.02,154.225244]
[1738171519418,0.03,229.03,229.02,153.225244]
[1738171519611,0.03,229.03,229.02,154.225244]
[1738171521739,0.03,229.03,229.02,162.234544]
[1738171523850,0.03,229.08,229.07,176.878844]
[1738171524443,0.03,229.08,229.07,181.244244]
[1738171526847,0.03,229.08,229.07,180.244244]
[1738171527062,0.03,229.08,229.07,183.224244]
[1738171527558,0.03,229.08,229.07,184.224244]
[1738171528542,12.60835445,229.49,229.33,31.0]
[1738171528850,12.60835445,229.55,229.39,30.0]
[1738171529028,1.5035,229.59,229.46,0.50196]
[1738171529227,13.47925445,229.63,229.52,24.027864]
[1738171529439,12.60835445,229.63,229.53,0.65333488]
[1738171529643,20.0,229.57,229.53,0.65333488]
[1738171529822,12.60835445,229.63,229.54,23.902374]
[1738171530028,12.60835445,229.63,229.55,0.65330254]
[1738171530255,55.54970873,229.64,229.55,0.65330254]
[1738171530544,54.67880873,229.64,229.6,0.12549]
[1738171530725,54.67880873,229.64,229.62,24.027864]
[1738171530925,54.67880873,229.64,229.63,24.55550903]
[1738171531247,54.67880873,229.64,229.63,24.93197903]
[1738171531427,54.67880873,229.64,229.63,24.80648903]
[1738171531828,54.67880873,229.64,229.59,0.65309593]
[1738171532145,20.02508158,229.66,229.59,0.65309593]
[1738171532350,20.02508158,229.68,229.6,24.153354]
[1738171532548,20.02508158,229.68,229.61,0.65313179]
[1738171532728,20.02508158,229.68,229.62,23.902374]
[1738171532932,20.02508158,229.68,229.63,0.6531582]
[1738171533140,20.02508158,229.68,229.61,0.12549]
[1738171533348,20.02508158,229.68,229.62,0.65313108]
[1738171533748,21.0,229.71,229.57,0.12549]
[1738171534055,20.02508158,229.63,229.59,0.65312711]
[1738171534428,20.02508158,229.64,229.59,0.65312711]
[1738171534823,20.02508158,229.64,229.58,0.65321878]
[1738171535431,20.02508158,229.62,229.58,0.65321878]
[1738171535652,20.02508158,229.59,229.56,0.65321877]
[1738171535854,20.02508158,229.59,229.52,0.50196]
[1738171536058,20.02508158,229.61,229.54,24.027864]
[1738171536263,20.02508158,229.61,229.55,0.6533032]
[1738171537161,20.89608158,229.62,229.55,0.6533032]
[1738171537334,20.02508158,229.65,229.56,24.153354]
[1738171537646,20.02508158,229.61,229.57,0.65323867]
[1738171537847,20.02508158,229.6,229.52,0.77881338]
[1738171538044,20.02508158,229.55,229.52,0.65332338]
[1738171538250,20.02508158,229.55,229.47,30.65345346]
[1738171538437,20.02508158,229.56,229.48,0.50196]
[1738171538629,20.02508158,229.56,229.51,0.12549]
[1738171538835,20.02508158,229.56,229.52,0.65342381]
[1738171539057,20.02508158,229.57,229.52,0.65342381]
[1738171539734,0.8712,229.56,229.52,0.65342381]
[1738171541162,20.02508158,229.53,229.47,0.65339979]
[1738171541338,20.02508158,229.51,229.47,0.65339979]
[1738171541741,20.02508158,229.52,229.47,0.65339979]
[1738171541940,20.02508158,229.53,229.47,0.65339979]
[1738171542144,20.02508158,229.54,229.47,0.65339979]
[1738171542355,0.8712,229.56,229.45,0.12549]
[1738171542356,20.02508158,229.53,229.48,0.6535341]
[1738171542564,20.02508158,229.53,229.46,0.65355731]
[1738171542937,20.02508158,229.5,229.45,0.65354285]
[1738171543258,20.02508158,229.5,229.41,0.65363305]
[1738171543454,20.02508158,229.52,229.42,0.25098]
[1738171543630,20.02508158,229.52,229.43,0.65361621]
[1738171544035,20.02508158,229.53,229.43,0.65361621]
[1738171546258,20.02508158,229.52,229.43,0.65361621]
[1738171546460,20.02508158,229.5,229.43,0.65361621]
[1738171546650,20.02508158,229.48,229.4,30.65360954]
[1738171546855,3.0503,229.48,229.4,30.65360954]
[1738171548169,23.07538158,229.48,229.4,0.65360954]
[1738171548378,20.02508158,229.46,229.4,0.65360954]
[1738171548675,20.02508158,229.47,229.41,0.65378326]
[1738171548869,20.02508158,229.47,229.39,0.65374027]
[1738171549072,3.0506,229.46,229.39,0.65374027]
[1738171549578,23.07568158,229.46,229.39,0.65374027]
[1738171549778,20.02508158,229.41,229.37,0.65380743]
[1738171549988,20.02508158,229.4,229.33,0.65380743]
[1738171550272,20.02508158,229.42,229.34,0.12549]
[1738171550477,20.02508158,229.43,229.35,0.65386082]
[1738171551255,0.8717,229.42,229.35,0.65386082]
[1738171552192,0.8717,229.42,229.36,23.902374]
[1738171552481,0.8717,229.42,229.38,24.027864]
[1738171552780,1.5092,229.54,229.4,23.902374]
[1738171552781,0.8716,229.46,229.4,23.902374]
[1738171552988,0.8716,229.46,229.41,0.65369572]
[1738171553357,3.0501,229.49,229.41,0.65369572]
[1738171554258,23.07518158,229.49,229.41,0.65369572]
[1738171554859,3.0501,229.49,229.41,0.65369572]
[1738171555487,0.8714,229.51,229.41,0.65369572]
[1738171555984,23.07498158,229.51,229.41,0.65369572]
[1738171556475,23.07498158,229.51,229.42,23.902374]
[1738171556683,23.07498158,229.51,229.4,23.902374]
[1738171556684,3.0499,229.51,229.43,0.65360177]
[1738171557378,20.02508158,229.5,229.43,0.65360177]
[1738171557583,20.02508158,229.49,229.41,23.902374]
[1738171557787,20.02508158,229.49,229.42,0.65368943]
[1738171558192,22.20358158,229.51,229.42,0.65368943]
[1738171558488,2.1785,229.51,229.43,0.37647]
[1738171558690,0.9013,229.53,229.44,0.6536053]
[1738171558892,0.9013,229.53,229.39,36.1537]
[1738171558893,20.02508158,229.44,229.37,1.6015]
[1738171559058,20.02508158,229.41,229.37,1.6015]
[1738171559390,0.8718,229.4,229.35,0.65385241]
[1738171559690,20.02508158,229.42,229.35,0.65385241]
[1738171560888,0.8718,229.41,229.35,0.65385241]
[1738171561663,0.8718,229.41,229.32,0.65386027]
[1738171561865,20.02508158,229.38,229.31,0.65396691]
[1738171562174,7.4103,229.41,229.31,0.65403592]
[1738171562175,20.02508158,229.36,229.31,0.65403592]
[1738171562894,0.872,229.35,229.31,0.65403592]
[1738171563257,0.872,229.35,229.3,51.86]
[1738171563671,0.872,229.35,229.31,0.65406122]
[1738171563959,42.20488158,229.38,229.31,0.65406122]
[1738171564591,42.20488158,229.38,229.26,0.18849]
[1738171564592,20.02508158,229.32,229.26,0.063]
[1738171564764,20.02508158,229.3,229.26,0.063]
[1738171564961,0.654,229.29,229.26,0.063]
[1738171565166,20.67908158,229.3,229.26,0.063]
[1738171565390,20.0,229.29,229.26,0.063]
[1738171566074,20.02508158,229.3,229.26,0.063]
[1738171566273,0.8722,229.29,229.26,0.063]
[1738171566465,0.8721,229.33,229.26,0.71719561]
[1738171566661,0.8719,229.37,229.27,23.902374]
[1738171567010,0.8719,229.37,229.28,0.65401457]
[1738171567376,20.0,229.35,229.28,0.65401457]
[1738171568466,0.8719,229.37,229.28,0.65401457]
[1738171568762,0.8719,229.37,229.29,24.027864]
[1738171568963,0.8719,229.37,229.3,0.65396591]
[1738171570383,22.20468158,229.4,229.3,0.65396591]
[1738171570574,20.02508158,229.38,229.3,0.65396591]
[1738171571578,0.8718,229.39,229.3,0.65396591]
[1738171572688,0.8718,229.39,229.31,1.5993]
[1738171572990,0.8718,229.39,229.32,0.65397683]
[1738171575971,0.8715,229.48,229.36,24.278844]
[1738171576269,0.8715,229.48,229.38,24.027864]
[1738171576572,0.8715,229.48,229.4,23.902374]
[1738171576767,20.0,229.47,229.41,0.65366482]
[1738171577272,0.8714,229.49,229.41,0.65366482]
[1738171577482,0.8714,229.49,229.42,23.902374]
[1738171577680,0.8714,229.49,229.43,0.65360284]
[1738171578569,0.8714,229.49,229.44,0.65364223]
[1738171578770,0.8714,229.49,229.42,23.902374]
[1738171579072,0.8714,229.49,229.43,0.65365386]
[1738171579872,20.02508158,229.48,229.4,0.6536525]
[1738171580465,0.9014,229.49,229.4,0.6536525]
[1738171580673,20.02508158,229.48,229.4,0.6536525]
[1738171582001,0.8715,229.47,229.4,0.6536525]
[1738171582972,20.02508158,229.42,229.37,0.65369108]
[1738171583176,20.02508158,229.42,229.34,0.65369108]
[1738171583985,0.8718,229.41,229.34,0.65369108]
[1738171588199,20.02508158,229.38,229.33,6.78012674]
[1738171588699,12.55089216,229.39,229.33,6.78012674]
[1738171590283,0.8719,229.38,229.33,6.78012674]
[1738171592606,12.55089216,229.41,229.33,6.78012674]
[1738171593279,12.55089216,229.39,229.33,6.78012674]
[1738171593484,20.654,229.43,229.33,6.78012674]
[1738171593485,12.55089216,229.37,229.33,6.78012674]
[1738171593713,0.8719,229.36,229.33,6.1262]
[1738171594116,1.5259,229.36,229.31,1.6623]
[1738171594305,0.8719,229.36,229.32,0.65407973]
[1738171594487,0.8719,229.36,229.31,1.6623]
[1738171594687,12.55089216,229.35,229.31,0.063]
[1738171595215,3.0518,229.36,229.31,0.063]
[1738171595418,0.8719,229.36,229.31,0.063]
[1738171595811,0.8718,229.39,229.31,0.71704612]
[1738171596324,20.0,229.38,229.31,0.71704612]
[1738171597388,0.8719,229.37,229.31,0.71704612]
[1738171597591,13.42279216,229.37,229.31,0.71704612]
[1738171599023,0.654,229.36,229.31,0.063]
[1738171599232,13.42279216,229.37,229.31,0.063]
[1738171599396,15.60259216,229.37,229.31,0.063]
[1738171599725,0.654,229.36,229.31,0.063]
[1738171600648,0.872,229.35,229.31,0.063]
[1738171602631,0.8719,229.36,229.31,0.063]
[1738171604033,12.55089216,229.35,229.31,0.063]
[1738171604205,13.20489216,229.35,229.31,0.063]
[1738171604550,12.55089216,229.35,229.31,0.063]
[1738171604728,0.872,229.34,229.31,0.063]
[1738171605908,12.55089216,229.32,229.31,0.063]
[1738171606228,12.55089216,229.32,229.26,0.063]
[1738171606526,12.55089216,229.28,229.26,0.063]
[1738171606733,0.8723,229.27,229.26,0.063]
[1738171607832,13.42309216,229.3,229.26,0.063]
[1738171608612,12.55089216,229.34,229.26,0.063]
[1738171608815,12.55089216,229.34,229.26,0.71712114]
[1738171609011,12.55089216,229.34,229.26,0.063]
[1738171609012,20.0,229.31,229.26,0.063]
[1738171609227,12.55089216,229.28,229.26,0.063]
[1738171609540,0.654,229.27,229.26,0.063]
[1738171610331,0.654,229.27,229.26,0.0001]
[1738171610837,1.5263,229.27,229.26,0.0001]
[1738171615344,20.0,229.25,229.21,51.78]
[1738171615640,13.42329216,229.24,229.21,51.78]
[1738171615841,14.07729216,229.24,229.21,51.78]
[1738171616029,13.42329216,229.24,229.21,51.78]
[1738171617235,13.42329216,229.24,229.21,51.843]
[1738171618228,14.07729216,229.24,229.21,51.843]
[1738171620742,0.8724,229.24,229.21,51.843]
[1738171620938,0.8722,229.28,229.22,0.65430735]
[1738171621148,0.8721,229.31,229.22,0.65430735]
[1738171621452,0.8721,229.31,229.24,6.2674]
[1738171621654,20.8721,229.31,229.25,0.65416463]
[1738171622039,0.8721,229.31,229.25,0.65416463]
[1738171622959,3.0525,229.31,229.25,0.65416463]
[1738171623131,3.7065,229.31,229.24,6.92159659]
[1738171623328,12.55089216,229.3,229.24,6.2674]
[1738171624249,12.55089216,229.3,229.25,0.65422262]
[1738171624655,12.55089216,229.3,229.24,6.92162715]
[1738171625231,0.8722,229.3,229.24,6.92162715]
[1738171625955,0.03,229.35,229.28,0.25098]
[1738171626254,0.03,229.35,229.3,23.902374]
[1738171626556,0.03,229.35,229.31,0.65398777]
[1738171627253,0.03,229.35,229.29,0.65402599]
[1738171627556,0.03,229.35,229.3,23.902374]
[1738171627755,0.03,229.35,229.31,0.65395751]
[1738171629858,0.03,229.35,229.32,0.65397143]
[1738171630060,0.03,229.35,229.3,23.902374]
[1738171630246,0.03,229.35,229.31,0.65397993]
[1738171632061,0.03,229.35,229.33,6.281]
[1738171632362,0.03,229.35,229.34,0.77933381]
[1738171632665,0.03,229.35,229.34,24.55621781]
[1738171633160,0.03,229.35,229.34,0.65384381]
[1738171633336,0.03,229.35,229.33,6.93496713]
[1738171634356,0.03,229.35,229.34,23.902374]
[1738171636158,0.03,229.35,229.33,6.93496713]
[1738171636473,0.03,229.35,229.29,0.65398508]
[1738171636474,12.55089216,229.34,229.29,0.65398508]
[1738171636638,12.55089216,229.3,229.28,6.0671]
[1738171637575,12.55089216,229.3,229.27,2.21828508]
[1738171637738,12.55089216,229.32,229.27,2.21828508]
[1738171638270,0.8721,229.31,229.27,2.21828508]
[1738171638504,13.42299216,229.31,229.27,1.5643]
[1738171638877,12.55089216,229.3,229.27,1.5643]
[1738171639373,13.42299216,229.31,229.27,1.5643]
[1738171642312,20.0,229.3,229.27,1.5643]
[1738171642478,0.8721,229.31,229.28,0.65419157]
[1738171646413,0.872,229.34,229.28,0.65419157]
[1738171647002,0.872,229.34,229.29,0.25098]
[1738171647211,0.872,229.34,229.3,0.65408723]
[1738171648518,0.03,229.35,229.3,0.65408723]
[1738171652202,0.03,229.35,229.31,24.027864]
[1738171652389,0.03,229.35,229.33,0.12549]
[1738171652589,0.03,229.35,229.34,0.65395729]
[1738171653497,0.03,229.35,229.33,0.12549]
[1738171653700,0.03,229.35,229.34,0.65393676]
[1738171654308,0.03,229.35,229.34,24.80729076]
[1738171654630,0.03,229.35,229.34,24.93278076]
[1738171659226,0.03,229.35,229.34,29.29308076]
[1738171661533,0.03,229.35,229.34,30.86858076]
[1738171661908,0.03,229.41,229.39,0.50196]
[1738171662113,0.03,229.41,229.4,24.93249622]
[1738171662341,0.03,229.41,229.4,32.61089622]
[1738171662513,0.03,229.49,229.45,24.278844]
[1738171662710,0.03,229.49,229.47,24.027864]
[1738171662938,0.03,229.49,229.48,24.68137246]
[1738171663131,0.03,229.49,229.48,24.80686246]
[1738171663318,0.03,229.49,229.48,24.93235246]
[1738171663938,0.03,229.49,229.48,24.68137246]
[1738171665323,0.03,229.49,229.48,0.65350846]
[1738171665526,0.03,229.49,229.45,23.902374]
[1738171665727,0.03,229.49,229.46,0.65357133]
[1738171667153,0.03,229.49,229.42,0.77908436]
[1738171667724,0.03,229.49,229.43,23.902374]
[1738171667929,0.03,229.49,229.44,0.65365796]
[1738171668247,20.03,229.49,229.42,24.027864]
[1738171668457,0.03,229.49,229.43,30.65355754]
[1738171669171,0.03,229.49,229.44,23.902374]
[1738171669331,0.03,229.49,229.45,0.65354528]
[1738171670848,0.03,229.49,229.41,0.65360921]
[1738171672446,0.9014,229.49,229.41,0.65360921]
[1738171673568,0.9014,229.49,229.42,24.027864]
[1738171673745,0.9014,229.49,229.43,0.6535919]
[1738171674455,0.03,229.49,229.44,54.278844]
[1738171674761,0.03,229.49,229.45,0.65355853]
[1738171674968,0.03,229.49,229.46,24.027864]